bitfinex-derivatives/quotes_ETHF0:USTF0_20250824
["timestamp","ask_amount","ask_price","bid_price","bid_amount"]
[1756016404463,0.41907,4774.0,4773.0,0.41914]
[1756016404667,0.1467,4773.7,4773.6,1.3367]
[1756016405160,0.56578,4773.7,4773.6,1.3367]
[1756016405360,0.1467,4773.7,4773.6,1.3367]
[1756016405560,0.41904,4774.2,4773.6,0.5393]
[1756016405766,0.56574,4774.2,4774.1,1.3367]
[1756016406067,0.1467,4774.2,4774.1,1.3367]
[1756016406662,0.1476,4774.2,4774.1,1.3367]
[1756016406866,19.613,4774.9,4774.1,0.5393]
[1756016407067,0.56572,4774.4,4774.3,1.3367]
[1756016407569,0.56662,4774.4,4774.3,1.3367]
[1756016407762,0.1467,4774.4,4774.3,1.3367]
[1756016407959,0.1467,4775.3,4775.2,0.772]
[1756016408159,0.1467,4775.3,4775.2,1.1053]
[1756016408470,0.1467,4775.4,4775.3,1.1053]
[1756016408671,0.1476,4775.4,4775.3,1.3367]
[1756016410171,0.3359,4775.4,4775.3,1.3367]
[1756016410567,0.1476,4775.4,4775.3,1.3367]
[1756016410763,0.1467,4775.4,4775.3,1.3367]
[1756016410969,0.41893,4775.5,4775.4,1.3367]
[1756016411163,0.41891,4775.7,4775.6,0.2197]
[1756016411369,0.1467,4775.7,4775.6,1.3367]
[1756016411870,0.5656,4775.8,4775.7,1.3367]
[1756016412268,0.5665,4775.8,4775.7,1.3367]
[1756016414371,0.5656,4775.8,4775.7,1.3367]
[1756016414572,0.4189,4775.8,4775.7,1.3367]
[1756016415162,0.41888,4776.0,4775.9,0.5393]
[1756016415363,0.41888,4776.0,4775.9,1.3367]
[1756016415972,0.97668283,4776.0,4775.9,1.3367]
[1756016416174,1.12338283,4776.0,4775.9,1.3367]
[1756016416680,1.30580938,4776.0,4775.9,1.3367]
[1756016416868,0.18242655,4776.0,4775.9,1.77649]
[1756016417171,0.1883,4777.1,4774.4,2.0951]
[1756016417172,0.41883,4776.7,4776.6,1.3367]
[1756016417472,0.60173,4777.7,4777.6,0.3196]
[1756016417674,1.53737291,4777.7,4777.6,1.3367]
[1756016418678,1.12327291,4777.7,4777.6,1.3367]
[1756016419072,0.88754291,4777.7,4777.6,1.3367]
[1756016419273,1.11862563,4777.7,4777.6,1.3367]
[1756016419468,0.1467,4777.7,4777.6,1.3367]
[1756016419677,0.41873,4777.8,4777.7,1.3367]
[1756016420069,0.97953,4777.8,4777.7,1.3367]
[1756016420474,0.97953,4777.8,4777.7,0.6241]
[1756016420773,0.97953,4777.8,4775.6,1.0473]
[1756016420774,1.16786,4777.4,4777.3,0.2314]
[1756016420966,20.72586,4777.4,4777.3,0.2314]
[1756016421170,20.53756,4777.4,4777.3,1.3367]
[1756016421370,19.558,4777.4,4777.3,1.3367]
[1756016421975,20.1188,4777.4,4777.3,1.3367]
[1756016423780,19.558,4777.4,4777.3,1.3367]
[1756016425288,0.41875,4777.5,4777.4,1.3367]
[1756016426482,0.74845,4777.5,4777.4,1.3367]
[1756016428084,0.41875,4777.5,4777.4,1.3367]
[1756016429778,0.56545,4777.5,4777.4,1.3367]
[1756016429978,0.74775,4777.5,4777.4,1.3367]
[1756016430180,0.97885,4777.5,4777.4,1.3367]
[1756016431676,1.16665,4777.5,4777.4,0.4641]
[1756016431881,0.97892,4776.7,4776.6,1.3367]
[1756016438489,0.74782,4776.7,4776.6,1.3367]
[1756016438686,0.98366,4775.2,4775.1,1.3093]
[1756016438893,0.98366,4775.2,4775.1,0.9761]
[1756016439088,0.98366,4775.2,4775.1,1.3093]
[1756016439894,0.41895,4775.3,4775.1,0.5254]
[1756016440083,0.41894,4775.4,4775.2,0.94435]
[1756016440395,0.41894,4775.4,4775.3,1.3093]
[1756016446298,0.56514,4775.4,4775.3,1.3093]
[1756016446501,0.98364,4775.4,4775.3,1.3093]
[1756016447395,0.56514,4775.4,4775.3,1.3093]
[1756016448003,0.41894,4775.4,4775.3,1.72824]
[1756016448205,0.41894,4775.4,4775.3,1.3093]
[1756016448801,0.41892,4775.6,4775.5,1.33702]
[1756016449000,0.60177,4776.1,4776.0,1.0914]
[1756016449308,1.48840896,4776.1,4776.0,1.3093]
[1756016449503,1.72400896,4776.1,4776.0,1.3093]
[1756016449997,1.73922443,4776.1,4776.0,0.9761]
[1756016450302,1.1718,4775.8,4775.7,1.0886]
[1756016450503,1.1718,4775.8,4775.7,1.3093]
[1756016451002,1.1718,4775.8,4775.7,0.9761]
[1756016451598,1.1718,4775.8,4775.7,1.3093]
[1756016453003,0.9836,4775.8,4775.7,1.3093]
[1756016453799,0.4189,4775.8,4775.7,1.3093]
[1756016454607,0.9836,4775.8,4775.7,1.3093]
[1756016456609,0.4189,4775.8,4775.7,1.3093]
[1756016461223,19.87286,4776.2,4776.1,1.3093]
[1756016461420,0.99434081,4776.2,4776.1,1.3093]
[1756016462612,0.41886,4776.2,4776.1,1.3093]
[1756016462817,0.98349,4777.0,4776.9,1.3093]
[1756016463018,20.95546038,4777.0,4776.9,1.3093]
[1756016463218,21.14366038,4777.0,4776.9,1.3093]
[1756016463515,20.95546038,4777.0,4776.9,1.3093]
[1756016464617,20.39076038,4777.0,4776.9,1.3093]
[1756016465021,0.99476038,4777.0,4776.9,1.3093]
[1756016467416,0.57597038,4777.0,4776.9,1.3093]
[1756016467817,19.388,4777.5,4777.4,0.547]
[1756016468017,19.96168857,4777.5,4777.4,1.3468]
[1756016468519,20.29648857,4777.5,4777.4,1.3468]
[1756016468916,0.1824,4777.8,4777.4,1.3468]
[1756016469118,0.3348,4777.7,4777.6,1.3468]
[1756016469322,0.5725,4777.7,4777.6,1.3468]
[1756016470520,0.99124,4777.7,4777.6,1.3468]
[1756016473723,1.17914,4777.7,4777.6,1.3468]
[1756016476128,1.17914,4777.7,4777.6,0.22]
[1756016476329,0.99131,4776.8,4776.7,1.3468]
[1756016476533,1.17921,4776.8,4776.7,0.764]
[1756016476827,1.17921,4776.8,4776.7,0.4467]
[1756016477626,1.17924,4776.5,4776.4,0.2267]
[1756016477822,1.17924,4776.5,4776.0,1.1268]
[1756016477823,0.80897,4776.1,4776.0,1.1268]
[1756016478021,1.17927,4776.1,4776.0,0.544]
[1756016478224,1.17927,4776.1,4776.0,0.4467]
[1756016478819,20.39511,4776.5,4775.7,0.3531]
[1756016478820,1.1793,4775.8,4775.7,0.22]
[1756016479121,20.5213,4775.8,4775.7,0.22]
[1756016479326,0.3901,4774.9,4774.8,0.6704]
[1756016479524,1.17938,4774.9,4774.8,0.3173]
[1756016479730,0.41901,4774.6,4774.5,0.6704]
[1756016480029,1.17941,4774.6,4774.5,0.22]
[1756016480225,0.41903,4774.3,4774.2,0.616]
[1756016480432,1.17943,4774.3,4774.2,0.9937]
[1756016480735,1.17943,4774.3,4774.2,1.3468]
[1756016482133,0.99153,4774.3,4774.2,1.3468]
[1756016483729,19.345,4774.4,4774.2,0.547]
[1756016483930,19.94643,4774.4,4774.3,1.3468]
[1756016484233,20.33653,4774.4,4774.3,1.3468]
[1756016484933,19.9175,4774.4,4774.3,1.3468]
[1756016486628,20.1054,4774.4,4774.3,1.1171]
[1756016486834,20.1054,4774.4,4774.3,1.3468]
[1756016487926,19.9175,4774.4,4774.3,1.3468]
[1756016490036,19.345,4774.4,4774.3,1.3468]
[1756016490231,0.2377,4774.4,4774.3,0.7737]
[1756016490437,0.5728,4774.4,4774.3,1.3468]
[1756016490633,0.99189,4773.6,4773.5,0.4467]
[1756016490936,20.50299,4773.6,4773.5,0.22]
[1756016491525,0.65687,4772.8,4772.7,0.547]
[1756016491738,0.5728,4772.8,4772.7,1.3468]
[1756016493638,0.99196,4772.8,4772.7,1.3468]
[1756016494034,0.1524,4772.8,4772.7,1.3468]
[1756016495040,0.60175,4773.0,4772.9,0.5463]
[1756016495240,0.74835,4773.0,4772.9,1.3333]
[1756016495637,19.7461,4773.6,4773.4,1.3333]
[1756016495836,0.41908,4773.8,4773.5,1.3333]
[1756016496139,0.41908,4773.8,4773.7,1.3333]
[1756016497238,0.60168,4773.8,4773.7,1.3333]
[1756016497437,0.74828,4773.8,4773.7,1.3333]
[1756016497739,0.98338,4773.8,4773.7,1.3333]
[1756016498441,1.17138,4773.8,4773.7,1.3333]
[1756016499033,0.98338,4773.8,4773.7,1.3333]
[1756016500534,0.74828,4773.8,4773.7,1.3333]
[1756016500837,1.17138,4773.8,4773.7,0.9998]
[1756016501037,1.17138,4773.8,4773.7,0.4535]
[1756016502140,1.17138,4773.8,4773.7,0.6075]
[1756016502443,0.98338,4773.8,4773.7,1.3333]
[1756016504441,1.17138,4773.8,4773.7,1.3333]
[1756016505633,0.98338,4773.8,4773.7,1.3333]
[1756016506242,1.55266395,4773.8,4773.7,1.3333]
[1756016506637,1.74066395,4773.8,4773.7,1.3333]
[1756016506940,1.04776,4773.6,4773.0,0.2191]
[1756016507136,0.4177,4772.8,4772.7,0.2191]
[1756016507340,20.0503,4772.8,4772.7,0.4535]
[1756016507842,20.61998541,4772.8,4772.7,0.4535]
[1756016508139,20.61998541,4772.8,4772.7,0.6075]
[1756016508333,20.61998541,4772.8,4772.7,0.7598]
[1756016509246,20.61998541,4772.8,4772.7,1.3333]
[1756016509945,20.43198541,4772.8,4772.7,1.3333]
[1756016512345,19.86768541,4772.8,4772.7,1.3333]
[1756016514546,0.75228541,4772.8,4772.7,1.3333]
[1756016515241,0.89888541,4772.8,4772.7,1.3333]
[1756016515446,1.13398541,4772.8,4772.7,1.3333]
[1756016515746,0.89888541,4772.8,4772.7,1.3333]
[1756016516044,1.13398541,4772.8,4772.7,1.3333]
[1756016519649,1.32198541,4772.8,4772.7,0.4535]
[1756016519854,1.32198541,4772.8,4772.7,1.3333]
[1756016520550,1.32198541,4772.8,4772.7,0.6058]
[1756016520749,1.32198541,4772.8,4772.7,1.3333]
[1756016520950,1.13398541,4772.8,4772.7,1.3333]
[1756016523153,0.56968541,4772.8,4772.7,1.75247]
[1756016523461,0.56968541,4772.8,4772.7,1.93154838]
[1756016523751,0.56968541,4772.8,4772.7,1.75247]
[1756016523952,0.56968541,4772.8,4772.7,1.93154431]
[1756016524156,0.56968541,4772.8,4772.7,1.95244431]
[1756016524347,0.20858541,4772.8,4772.7,1.77337]
[1756016524550,0.20858541,4772.8,4772.7,1.95243915]
[1756016524750,0.20858541,4772.8,4772.7,1.93153915]
[1756016525252,0.41912,4773.3,4773.1,0.41913]
[1756016525451,19.6861,4773.5,4773.2,1.3467]
[1756016525650,19.6861,4773.5,4773.4,0.5325]
[1756016525850,19.6861,4773.5,4773.4,1.3467]
[1756016526046,19.267,4773.5,4773.4,1.3467]
[1756016526251,0.41906,4774.0,4773.8,0.5325]
[1756016526457,0.41906,4774.0,4773.9,1.3467]
[1756016526660,0.99276,4774.0,4773.9,1.3467]
[1756016526850,1.15246,4774.0,4773.9,1.3467]
[1756016527056,1.33996,4774.0,4773.9,1.3467]
[1756016527553,1.15246,4774.0,4773.9,1.3467]
[1756016529054,1.15246,4774.0,4771.7,1.04815]
[1756016529055,1.04767,4773.9,4771.7,1.04815]
[1756016529366,0.7334,4772.9,4772.8,1.3467]
[1756016529559,0.7334,4772.9,4772.8,1.52568859]
[1756016529760,0.41914,4773.1,4772.9,0.8142]
[1756016530062,1.15254,4773.1,4773.0,1.52568859]
[1756016530758,0.7334,4773.1,4773.0,1.52568859]
[1756016531158,19.266,4773.4,4773.1,0.8142]
[1756016531354,0.7334,4773.2,4773.1,1.3467]
[1756016531555,1.15253,4773.2,4773.1,1.52570551]
[1756016531757,19.266,4773.4,4773.1,1.94483551]
[1756016531956,19.266,4773.4,4773.3,0.5325]
[1756016532255,0.4191,4773.6,4773.3,0.5325]
[1756016532568,19.272,4773.9,4773.8,1.3467]
[1756016533362,20.03767,4773.9,4773.8,1.3467]
[1756016533558,20.42447,4773.9,4773.8,1.3467]
[1756016533958,19.91817,4773.9,4773.8,1.3467]
[1756016534166,20.42447,4773.9,4773.8,1.3467]
[1756016536563,20.98424158,4773.9,4773.8,1.3467]
[1756016536962,20.42447,4773.9,4773.8,1.3467]
[1756016537863,20.0054,4773.9,4773.8,1.3467]
[1756016538165,19.4871,4774.2,4774.1,1.3467]
[1756016538751,0.7334,4774.2,4774.1,1.3467]
[1756016539964,20.06382,4774.5,4774.4,1.3467]
[1756016540265,20.6233246,4774.5,4774.4,1.3467]
[1756016540464,20.9699246,4774.5,4774.4,0.2273]
[1756016540762,0.99275,4774.1,4774.0,0.8809]
[1756016541256,1.34055,4774.1,4774.0,0.9983]
[1756016541462,1.15245,4774.1,4774.0,1.3467]
[1756016541864,1.34055,4774.1,4774.0,1.3467]
[1756016542366,1.15245,4774.1,4774.0,1.3467]
[1756016542663,0.3466,4774.7,4774.5,0.8142]
[1756016542859,0.41899,4774.8,4774.6,0.5325]
[1756016543159,0.41899,4774.8,4774.7,1.3467]
[1756016543160,1.15239,4774.8,4774.7,1.3467]
[1756016543364,19.259,4775.1,4774.1,0.0209]
[1756016543365,1.15244,4774.2,4774.1,1.3467]
[1756016543663,1.34054,4774.2,4774.1,0.2273]
[1756016543865,0.5737,4774.2,4774.1,1.3467]
[1756016544260,20.03162,4774.5,4774.1,0.95155]
[1756016544564,20.07182,4774.5,4774.4,0.5325]
[1756016544766,20.07182,4774.5,4774.4,1.3467]
[1756016544965,20.41842,4774.5,4774.4,1.3467]
[1756016546659,0.7334,4774.5,4774.4,1.3467]
[1756016547962,0.419,4774.7,4774.4,0.95152]
[1756016548158,0.9927,4774.7,4774.6,1.3467]
[1756016548466,0.3466,4774.7,4774.6,1.3467]
[1756016548664,0.7334,4774.7,4774.6,1.3467]
[1756016550469,0.80585,4774.1,4774.0,1.3467]
[1756016550670,0.7334,4774.1,4774.0,1.52543538]
[1756016552762,0.7334,4774.1,4774.0,1.3467]
[1756016553071,0.3466,4774.1,4774.0,1.3467]
[1756016553268,0.3466,4774.1,4774.0,1.53061791]
[1756016553471,0.3466,4774.1,4774.0,1.3467]
[1756016553673,0.3466,4774.1,4774.0,1.53061791]
[1756016554271,0.7334,4774.1,4774.0,1.53061791]
[1756016554667,0.1881,4774.9,4774.3,0.5169]
[1756016554861,1.14432,4774.5,4774.4,1.309]
[1756016556975,1.33242,4774.5,4774.4,1.309]
[1756016557176,1.14432,4774.5,4774.4,1.309]
[1756016559473,0.98992,4774.5,4774.4,1.309]
[1756016559873,1.14432,4774.5,4774.4,1.309]
[1756016560780,1.33242,4774.5,4774.4,0.9533]
[1756016561280,1.14438,4773.8,4773.7,0.8726]
[1756016561477,1.14438,4773.8,4773.7,1.05668288]
[1756016561875,1.14438,4773.8,4773.7,1.49308288]
[1756016562075,0.41908,4773.8,4773.7,1.49308288]
[1756016562276,0.41906,4774.0,4773.7,1.91216288]
[1756016562476,0.76426,4774.0,4773.9,1.309]
[1756016562681,0.76426,4774.0,4773.9,1.49308288]
[1756016562884,0.98996,4774.0,4773.9,1.49308288]
[1756016563286,0.76426,4774.0,4773.9,1.309]
[1756016563583,0.76426,4774.0,4773.9,1.49315733]
[1756016563786,0.98996,4774.0,4773.9,1.49315733]
[1756016563984,1.14436,4774.0,4773.9,1.49315598]
[1756016564577,0.41906,4774.0,4773.9,1.49315598]
[1756016565178,1.14436,4774.0,4773.9,1.49315598]
[1756016566182,1.14436,4774.0,4773.9,1.309]
[1756016566490,1.14436,4774.0,4773.9,1.49325505]
[1756016566679,1.33246,4774.0,4773.9,1.49325505]
[1756016567386,1.33246,4774.0,4773.9,1.13755505]
[1756016568186,1.33246,4774.0,4773.9,0.62065505]
[1756016568381,1.33246,4774.0,4773.9,0.40285505]
[1756016568780,1.88934582,4774.0,4773.9,0.40285505]
[1756016568979,0.7253,4774.0,4773.9,1.49325505]
[1756016569582,0.9134,4774.0,4773.9,1.49325505]
[1756016569790,0.9134,4774.0,4773.9,0.62065505]
[1756016569985,0.7253,4774.0,4773.9,1.49325505]
[1756016570488,0.5709,4774.0,4773.9,1.49325505]
[1756016571391,0.2257,4774.0,4773.9,1.49325505]
[1756016571580,0.5709,4774.0,4773.9,1.49325505]
[1756016571776,0.7253,4774.0,4773.9,1.49325505]
[1756016572290,0.2257,4774.0,4773.9,1.49325505]
[1756016572983,0.41904,4774.3,4774.2,1.309]
[1756016573187,0.98021116,4774.3,4774.2,1.309]
[1756016573592,0.56117116,4774.3,4774.2,1.309]
[1756016573793,0.56117116,4774.3,4774.2,1.49328113]
[1756016574290,0.90637116,4774.3,4774.2,1.49328161]
[1756016574488,1.13207116,4774.3,4774.2,1.49328161]
[1756016574687,1.28647116,4774.3,4774.2,1.49328158]
[1756016576987,0.56117116,4774.3,4774.2,1.49328158]
[1756016577192,1.13207116,4774.3,4774.2,1.49328158]
[1756016577392,1.28647116,4774.3,4774.2,1.49328158]
[1756016578092,1.47457116,4774.3,4774.2,0.7364]
[1756016578288,0.56117116,4774.3,4773.6,0.41909]
[1756016578495,1.33251,4773.4,4773.3,0.2186]
[1756016578688,1.33251,4773.4,4773.3,0.62071816]
[1756016579189,1.33251,4773.4,4773.3,0.18431816]
[1756016580288,1.89317907,4773.4,4773.3,0.18431816]
[1756016580497,0.3801,4773.0,4772.9,1.72815]
[1756016580689,0.7253,4773.0,4772.9,1.49327946]
[1756016581589,0.5709,4773.0,4772.9,1.49327946]
[1756016581786,0.3452,4773.6,4773.2,0.7347]
[1756016581992,0.3452,4773.6,4773.5,1.309]
[1756016582184,0.56013415,4773.6,4773.5,1.309]
[1756016582784,0.3452,4773.9,4773.5,1.72809]
[1756016583095,0.56020666,4773.8,4773.7,1.309]
[1756016583796,0.41902,4774.4,4774.1,0.536]
[1756016583996,0.56018898,4774.3,4774.2,1.3147]
[1756016584595,0.41902,4774.5,4774.2,0.536]
[1756016584795,0.5602293,4774.4,4774.3,0.536]
[1756016585196,0.41902,4774.5,4774.3,0.536]
[1756016585397,0.41902,4774.5,4774.4,1.3147]
[1756016585699,0.97927752,4774.5,4774.4,1.3147]
[1756016586002,1.54197752,4774.5,4774.4,1.3147]
[1756016586399,1.69807752,4774.5,4774.4,1.3147]
[1756016586599,0.56025752,4774.5,4774.4,1.3147]
[1756016587096,1.27905752,4774.5,4774.4,1.3147]
[1756016588297,1.27905752,4774.5,4772.9,1.04787]
[1756016588298,0.41906,4774.0,4773.9,0.2172]
[1756016588498,1.32606,4774.0,4773.9,0.62047056]
[1756016589000,0.3345,4774.0,4773.9,1.49347056]
[1756016589199,0.41905,4774.1,4773.9,1.49347056]
[1756016589401,0.41904,4774.3,4774.0,1.49347056]
[1756016589597,0.41904,4774.3,4774.2,1.3147]
[1756016589798,1.13784,4774.3,4774.2,1.3147]
[1756016592801,1.13787,4773.9,4773.8,0.873]
[1756016593004,1.32607,4773.9,4773.8,0.71478913]
[1756016593300,1.32607,4773.9,4773.8,0.17878894]
[1756016593503,1.13788,4773.7,4773.6,1.3147]
[1756016593693,1.13788,4773.7,4773.6,1.49349209]
[1756016596099,1.13788,4773.7,4773.6,0.92809209]
[1756016596304,1.32608,4773.7,4773.6,0.92809209]
[1756016596504,1.32608,4773.7,4773.6,1.15649209]
[1756016596700,1.32608,4773.7,4773.6,1.49349209]
[1756016597001,1.32608,4773.7,4773.6,1.15649209]
[1756016597598,1.13788,4773.7,4773.6,1.49349209]
[1756016597798,1.13788,4773.7,4773.6,1.3147]
[1756016598200,1.13788,4773.7,4773.6,0.9777]
[1756016598408,1.32608,4773.7,4773.6,0.9777]
[1756016598606,1.88656895,4773.7,4773.6,0.9777]
[1756016599410,1.88656895,4773.7,4773.6,0.2172]
[1756016599903,1.88656895,4773.7,4773.6,0.4417]
[1756016600504,1.88656895,4773.7,4773.6,0.7493]
[1756016602005,1.69836895,4773.7,4773.6,0.9777]
[1756016602206,0.56048895,4773.7,4773.6,1.3147]
[1756016602400,0.41908,4773.8,4773.6,0.536]
[1756016602603,0.41908,4773.8,4773.7,1.3147]
[1756016602802,0.9768334,4773.8,4773.7,1.3147]
[1756016603005,0.97684852,4773.8,4773.7,1.3147]
[1756016603408,1.53954852,4773.8,4773.7,1.3147]
[1756016604009,0.41908,4773.8,4773.7,1.3147]
[1756016607114,0.41906,4774.0,4773.7,0.95508]
[1756016607414,0.97687723,4773.9,4773.8,1.3147]
[1756016608004,1.53957723,4773.9,4773.8,1.3147]
[1756016609016,1.20507723,4773.9,4773.8,1.3147]
[1756016610217,0.94210723,4773.9,4773.8,1.3147]
[1756016610417,1.27660723,4773.9,4773.8,1.3147]
[1756016610922,0.7188,4773.9,4773.8,1.3147]
[1756016611109,1.27649861,4773.9,4773.8,1.3147]
[1756016612310,1.27649861,4773.9,4773.8,0.7493]
[1756016612515,1.27649861,4773.9,4773.8,1.3147]
[1756016616322,1.46459861,4773.9,4773.8,1.3147]
[1756016616521,1.46459861,4773.9,4773.8,0.9777]
[1756016616721,1.46459861,4773.9,4773.8,1.3201]
[1756016617024,1.27649861,4773.9,4773.8,1.3201]
[1756016621925,1.12039861,4773.9,4773.8,1.3201]
[1756016622123,1.27979861,4773.9,4773.8,1.3201]
[1756016623123,1.27979861,4773.9,4773.8,0.9777]
[1756016623124,1.46789861,4773.9,4773.8,0.9777]
[1756016623325,0.6754,4773.7,4773.6,0.7594]
[1756016623624,1.45059861,4773.7,4773.6,0.4534]
[1756016624228,1.45059861,4773.7,4773.6,0.63196759]
[1756016624825,1.45059861,4773.7,4773.6,0.4534]
[1756016625226,1.45059861,4773.7,4773.6,0.2319]
[1756016626129,1.45059861,4773.7,4773.6,0.4534]
[1756016626834,1.45059861,4773.7,4773.6,1.3392]
[1756016627224,1.26249861,4773.7,4773.6,1.3392]
[1756016627518,1.45059861,4773.7,4773.6,1.3392]
[1756016628122,1.45059861,4773.7,4773.6,0.9968]
[1756016628628,1.45059861,4773.7,4772.9,0.608]
[1756016628629,1.04777,4773.5,4772.9,0.608]
[1756016628832,1.12394,4773.0,4772.9,1.3392]
[1756016629131,0.79604,4773.0,4772.9,1.51776717]
[1756016629333,1.12394,4773.0,4772.9,1.51776717]
[1756016632135,0.41914,4773.0,4772.9,1.51776717]
[1756016632530,0.41914,4773.0,4772.9,1.3392]
[1756016632726,0.96454,4773.0,4772.9,1.51764721]
[1756016633631,1.12394,4773.0,4772.9,1.51764721]
[1756016634132,0.41914,4773.0,4772.9,1.51764721]
[1756016634928,0.63664,4773.0,4772.9,1.51764721]
[1756016635134,0.96454,4773.0,4772.9,1.51764721]
[1756016635830,1.12386,4774.0,4773.9,0.8858]
[1756016636036,1.68667259,4774.0,4773.9,1.3392]
[1756016638236,1.68667259,4774.0,4772.4,1.04799]
[1756016638237,1.04774,4773.6,4772.9,0.5434]
[1756016638529,1.35881259,4773.5,4773.4,1.3392]
[1756016638936,1.68671259,4773.5,4773.4,1.3392]
[1756016640332,0.56281259,4773.5,4773.4,1.3392]
[1756016640535,0.41904,4774.2,4773.9,0.41906]
[1756016640731,0.57837,4775.0,4774.9,0.5434]
[1756016640933,1.68672039,4775.0,4774.9,1.3392]
[1756016642238,1.12377,4775.0,4774.9,1.3392]
[1756016642635,0.41896,4775.2,4775.1,0.3865]
[1756016642840,0.41889,4775.9,4775.8,0.1491]
[1756016643037,0.41889,4775.9,4775.8,1.3392]
[1756016643435,0.97903569,4775.9,4775.8,1.3392]
[1756016643638,0.74677,4776.2,4775.8,0.5434]
[1756016643836,0.55962105,4776.1,4776.0,1.3439]
[1756016644037,0.41885,4776.4,4776.3,1.3439]
[1756016644239,0.41883,4776.6,4776.3,0.5338]
[1756016644434,0.41881,4776.8,4776.5,1.1255]
[1756016644634,0.41881,4776.8,4776.7,1.1255]
[1756016644837,0.3293,4777.3,4776.7,0.5338]
[1756016645039,0.3293,4777.7,4777.1,1.3439]
[1756016645238,1.11213,4777.7,4777.6,0.5338]
[1756016645441,1.11213,4777.7,4777.6,1.3439]
[1756016645639,1.11303,4777.7,4777.6,1.3439]
[1756016646039,1.67150949,4777.7,4777.6,1.3439]
[1756016647240,1.11303,4777.7,4777.6,1.3439]
[1756016647843,1.11303,4777.7,4777.6,0.9901]
[1756016648045,0.41882,4776.7,4776.6,0.5338]
[1756016648741,0.41882,4776.7,4776.6,1.3439]
[1756016648943,1.11222,4776.7,4776.6,1.3439]
[1756016651947,1.11312,4776.7,4776.6,1.3439]
[1756016652243,1.11225,4776.4,4776.3,0.7575]
[1756016652550,1.30165,4776.4,4776.3,0.4563]
[1756016652844,1.30168,4776.0,4775.9,0.6009]
[1756016653446,1.30172,4775.6,4775.5,0.7575]
[1756016653651,1.30172,4775.6,4775.5,0.9901]
[1756016654546,1.30172,4775.6,4775.5,0.7575]
[1756016654752,1.11326,4775.1,4775.0,0.8876]
[1756016654947,0.63686,4775.1,4775.0,0.8876]
[1756016655454,0.63686,4775.1,4775.0,1.3439]
[1756016655840,0.41896,4775.1,4775.0,1.3439]
[1756016656152,0.41895,4775.2,4775.1,1.3439]
[1756016659849,0.3293,4776.0,4775.9,0.1566]
[1756016660156,20.39116,4776.3,4776.2,1.3439]
[1756016660653,20.57966,4776.3,4776.2,0.9901]
[1756016660854,20.57766,4776.3,4776.2,0.9901]
[1756016661155,0.365,4775.9,4775.8,0.7575]
[1756016661349,0.6943,4775.9,4775.8,0.7575]
[1756016661555,1.11319,4775.9,4775.8,0.9901]
[1756016661748,1.11319,4775.9,4775.8,1.3439]
[1756016662644,0.41889,4775.9,4775.8,1.3439]
[1756016663444,0.3293,4776.3,4776.0,0.41888]
[1756016663649,20.38424,4776.4,4776.3,1.3439]
[1756016663955,20.38514,4776.4,4776.3,1.3439]
[1756016665657,0.41884,4776.4,4776.3,1.3439]
[1756016665860,0.41884,4776.4,4775.4,1.04732]
[1756016665861,0.41884,4776.5,4776.4,1.3439]
[1756016667258,0.96604,4776.5,4776.4,1.3439]
[1756016667460,1.11224,4776.5,4776.4,1.3439]
[1756016668052,19.27,4777.0,4776.5,0.8101]
[1756016668353,20.38219,4777.0,4776.9,1.3439]
[1756016668655,20.57159,4777.0,4776.9,0.7575]
[1756016669158,21.12714636,4777.0,4776.9,0.7575]
[1756016669360,1.66864636,4777.0,4776.9,0.9901]
[1756016669553,20.94044636,4777.0,4776.9,1.3439]
[1756016670058,21.12924636,4777.0,4776.9,0.9901]
[1756016670258,20.57464636,4777.0,4776.9,1.3439]
[1756016670454,0.41883,4776.6,4776.5,0.4984]
[1756016670659,1.30313,4776.6,4776.5,0.7575]
[1756016671158,1.30313,4776.6,4776.5,0.4563]
[1756016671755,1.85889607,4776.6,4776.5,0.4563]
[1756016674554,1.85889607,4776.6,4776.5,0.9901]
[1756016674754,1.85889607,4776.6,4776.5,1.3165]
[1756016674962,1.67009607,4776.6,4776.5,1.3165]
[1756016675659,1.66929607,4776.6,4776.5,1.3165]
[1756016675862,1.66799607,4776.6,4776.5,1.3165]
[1756016677764,0.55576607,4776.6,4776.5,1.3165]
[1756016677957,0.41882,4776.7,4776.6,1.3073]
[1756016679566,1.13842,4776.7,4776.6,1.3073]
[1756016681462,0.5623,4777.3,4777.2,0.5238]
[1756016681660,0.41875,4777.6,4777.3,0.4571]
[1756016681963,0.64451,4778.0,4777.9,0.5238]
[1756016682168,0.5538884,4778.0,4777.9,1.3073]
[1756016682659,0.41867,4778.5,4778.4,0.9809]
[1756016682860,0.9724814,4778.5,4778.4,1.3073]
[1756016683053,0.5538114,4778.5,4778.4,1.3073]
[1756016683254,0.7796114,4778.5,4778.4,1.3073]
[1756016683660,0.5538114,4778.5,4778.4,1.3073]
[1756016683862,0.41865,4778.7,4778.2,0.41869]
[1756016684067,0.1882,4779.5,4776.3,20.94268]
[1756016684068,0.7196,4779.7,4779.6,1.3073]
[1756016684254,1.46060159,4779.7,4779.1,0.5461]
[1756016684460,0.3831,4779.2,4779.1,0.9809]
[1756016684654,0.9078,4778.9,4778.8,0.4571]
[1756016684861,0.3831,4778.4,4778.3,1.3073]
[1756016685160,0.7196,4778.4,4778.3,1.3073]
[1756016687364,0.3365,4778.6,4778.5,0.8502]
[1756016687565,0.3365,4778.6,4778.5,1.3073]
[1756016688361,0.7196,4778.6,4778.5,1.3073]
[1756016688665,0.7196,4778.6,4778.5,1.72596]
[1756016688968,0.7196,4778.6,4778.5,1.3073]
[1756016689173,1.13818,4779.5,4779.4,1.3073]